lending/lending_fUSD_20250429
["ID","MTS","AMOUNT","RATE_DAILY","PERIOD"]
[359317329,1745917840579,-470.0,0.00027788,2]
[359317330,1745917840591,-470.0,0.00027788,2]
[359317332,1745917840602,-476.3,0.00027788,2]
[359317334,1745917840611,-625.16,0.00027788,2]
[359317336,1745917840621,-518.95,0.00027788,2]
[359317338,1745917840630,-470.0,0.00027788,2]
[359317340,1745917840640,-788.95,0.00027788,2]
[359317342,1745917840649,-576.43,0.00027788,2]
[359317344,1745917840659,-470.0,0.00027788,2]
[359317346,1745917840669,-483.21,0.00027788,2]
[359317348,1745917840678,-470.0,0.00027788,2]
[359317350,1745917840688,-470.0,0.00027788,2]
[359317352,1745917840698,-962.39,0.00027788,2]
[359317354,1745917840707,-637.85,0.00027788,2]
[359317356,1745917840717,-470.0,0.00027788,2]
[359317358,1745917840727,-605.11,0.00027788,2]
[359317359,1745917840737,-726.38,0.00027788,2]
[359317360,1745917840747,-517.73,0.00027788,2]
[359317361,1745917840756,-587.29,0.00027788,2]
[359317363,1745917840768,-2091.59,0.00027788,2]
[359317365,1745917840778,-470.0,0.00027788,2]
[359317368,1745917840788,-508.87562221,0.00027788,2]
[359317369,1745917840797,-160.0,0.00027788,2]
[359317370,1745917840806,-470.0,0.00027788,2]
[359317371,1745917840815,-470.0,0.00027788,2]
[359317372,1745917840825,-6459.68,0.00027788,2]
[359317373,1745917840834,-470.0,0.00027788,2]
[359317374,1745917840843,-470.0,0.00027788,2]
[359317375,1745917840853,-470.0,0.00027788,2]
[359317376,1745917840862,-470.0,0.00027788,2]
[359317377,1745917840871,-470.0,0.00027788,2]
[359317378,1745917840881,-535.73,0.00027788,2]
[359317379,1745917840891,-470.0,0.00027788,2]
[359317380,1745917840901,-470.0,0.00027788,2]
[359317381,1745917840911,-7843.284518,0.00027788,2]
[359317382,1745917840920,-470.0,0.00027788,2]
[359317383,1745917840931,-645.85,0.00027788,2]
[359317384,1745917840941,-470.0,0.00027788,2]
[359317385,1745917840951,-3640.5528,0.00027789,2]
[359317386,1745917840961,-269.9524,0.00027789,2]
[359317387,1745917840971,-3929.7216,0.00027789,2]
[359317388,1745917840980,-2052.39581711,0.00027803,2]
[359317389,1745917840989,-490.11082274,0.00027831,2]
[359317390,1745917840999,-151.0,0.00027869,7]
[359317391,1745917841008,-159.684673,0.00027869,7]
[359317392,1745917841019,-151.0,0.00027869,7]
[359317393,1745917841028,-151.0,0.00027869,7]
[359317394,1745917841037,-151.0,0.00027869,7]
[359317395,1745917841047,-151.0,0.00027869,7]
[359317396,1745917841057,-213.649672,0.00027869,7]
[359317397,1745917841066,-61378.0716521,0.00027869,2]
[359317398,1745917841076,-52941.5642057,0.00027869,2]
[359317399,1745917841086,-26470.7821028,0.00027869,2]
[359317400,1745917841096,-151.0,0.0002787,7]
[359317401,1745917841106,-151.0,0.0002787,7]
[359317402,1745917841115,-206.58214,0.0002787,7]
[359317403,1745917841126,-251.577936,0.0002787,7]
[359317404,1745917841136,-151.0,0.0002787,7]
[359317405,1745917841145,-527.29102283,0.00027877,2]
[359317406,1745917841155,-30689.035826,0.00027879,2]
[359317407,1745917841164,-26470.7821028,0.00027879,2]
[359317408,1745917841174,-504.09,0.00027888,2]
[359317409,1745917841183,-654.53,0.00027888,2]
[359317410,1745917841193,-470.0,0.00027888,2]
[359317411,1745917841205,-568.69,0.00027888,2]
[359317412,1745917841215,-470.0,0.00027888,2]
[359317413,1745917841228,-470.0,0.00027888,2]
[359317414,1745917841237,-470.0,0.00027888,2]
[359317415,1745917841247,-470.0,0.00027888,2]
[359317416,1745917841256,-151.0,0.00027889,7]
[359317417,1745917841266,-151.0,0.00027889,7]
[359317418,1745917841275,-153.546988,0.00027889,7]
[359317419,1745917841284,-5693.7939,0.00027889,2]
[359317420,1745917841294,-12130.7314,0.00027889,2]
[359317421,1745917841305,-6304.8784,0.000279,2]
[359317422,1745917841314,-500.0,0.00027973,5]
[359317423,1745917841323,-303.32884518,0.00027973,5]
[359317424,1745917841332,-500.0,0.00027973,2]
[359317425,1745917841341,-500.0,0.00027973,5]
[359317426,1745917841352,-502.6595318,0.00027973,5]
[359317427,1745917841365,-501.56791232,0.00027973,5]
[359317428,1745917841374,-559.16463604,0.00027973,5]
[359317429,1745917841384,-222.34650816,0.00027973,5]
[359317430,1745917841395,-500.57404276,0.00027973,5]
[359317431,1745917841406,-501.37137215,0.00027973,5]
[359317432,1745917841416,-211.17216934,0.00027973,5]
[359317433,1745917841426,-500.68582318,0.00027973,5]
[359317434,1745917841436,-490.11082274,0.00027973,2]
[359317435,1745917841445,-346.509544,0.00027973,7]
[359317436,1745917841455,-346.509544,0.00027973,7]
[359317437,1745917841466,-151.0,0.00027973,7]
[359317438,1745917841486,-151.0,0.00027973,7]
[359317439,1745917841500,-151.0,0.00027973,7]
[359317440,1745917841511,-152.732161,0.00027973,7]
[359317441,1745917841520,-153.399017,0.00027973,7]
[359317442,1745917841531,-153.988947,0.00027973,7]
[359317443,1745917841540,-151.0,0.00027973,7]
[359317444,1745917841550,-151.0,0.00027973,7]
[359317445,1745917841559,-151.0,0.00027973,7]
[359317446,1745917841569,-156.502632,0.00027973,7]
[359317447,1745917841578,-151.0,0.00027973,7]
[359317448,1745917841588,-157.535877,0.00027973,7]
[359317449,1745917841598,-151.0,0.00027973,7]
[359317450,1745917841607,-151.0,0.00027973,7]
[359317451,1745917841617,-151.0,0.00027978,7]
[359317452,1745917841627,-151.0,0.00027978,7]
[359317453,1745917841636,-30689.035826,0.00027978,2]
[359317454,1745917841646,-26470.7821028,0.00027978,2]
[359317455,1745917841656,-30689.035826,0.00027979,2]
[359317456,1745917841667,-26470.7821028,0.00027979,2]
[359317457,1745917841676,-298.18574467,0.00027979,2]
[359317458,1745917841686,-151.0,0.0002798,7]
[359317459,1745917841695,-151.0,0.0002798,7]
[359317460,1745917841705,-30689.035826,0.0002798,2]
[359317461,1745917841714,-26470.7821028,0.0002798,2]
[359317462,1745917841725,-500.0,0.00027987,2]
[359317463,1745917841734,-538.07859182,0.00027987,2]
[359317464,1745917841744,-162.418847,0.00027987,7]
[359317465,1745917841755,-154.295726,0.00027987,7]
[359317466,1745917841765,-151.0,0.00027987,7]
[359317467,1745917841776,-1037.260517,0.00027987,2]
[359317468,1745917841785,-923.08,0.00027987,2]
[359317469,1745917841794,-151.0,0.00027987,7]
[359317470,1745917841803,-655.282607,0.00027987,2]
[359317471,1745917841813,-470.0,0.00027987,2]
[359317472,1745917841822,-470.0,0.00027987,2]
[359317473,1745917841831,-470.0,0.00027987,2]
[359317474,1745917841841,-470.0,0.00027987,2]
[359317475,1745917841850,-1100.86,0.00027987,2]
[359317476,1745917841860,-470.0,0.00027987,2]
[359317477,1745917841869,-569.58,0.00027987,2]
[359317478,1745917841879,-470.0,0.00027987,2]
[359317479,1745917841888,-470.0,0.00027987,2]
[359317480,1745917841898,-565.78,0.00027987,2]
[359317481,1745917841908,-470.0,0.00027987,2]
[359317482,1745917841918,-542.22,0.00027987,2]
[359317483,1745917841928,-470.0,0.00027987,2]
[359317484,1745917841937,-500.0,0.00027988,2]
[359317485,1745917841947,-1000.0,0.00027988,2]
[359317486,1745917841957,-61378.0716521,0.00027989,2]
[359317487,1745917841967,-79412.3463085,0.00027989,2]
[359317488,1745917841977,-151.0,0.00027989,7]
[359317489,1745917842186,-151.0,0.00027989,7]
[359317490,1745917842197,-156.35856,0.00027989,7]
[359317491,1745917842207,-236.083165,0.00027989,7]
[359317492,1745917842217,-153.139737,0.00027989,7]
[359317493,1745917842231,-151.0,0.00027989,7]
[359317494,1745917842240,-296.321459,0.00027989,7]
[359317495,1745917842250,-481.308309,0.00027989,7]
[359317496,1745917842260,-151.0,0.00027989,7]
[359317497,1745917842270,-481.308309,0.00027989,7]
[359317498,1745917842279,-525.661919,0.00027989,7]
[359317499,1745917842289,-525.661919,0.00027989,7]
[359317500,1745917842299,-651.415344,0.00027989,7]
[359317501,1745917842309,-346.509544,0.00027989,7]
[359317502,1745917842319,-346.509544,0.00027989,7]
[359317503,1745917842328,-151.0,0.00027989,7]
[359317504,1745917842338,-151.0,0.00027989,7]
[359317505,1745917842347,-151.0,0.00027989,7]
[359317506,1745917842357,-151.0,0.00027989,7]
[359317507,1745917842367,-151.0,0.00027989,7]
[359317508,1745917842376,-210.162848,0.00027989,7]
[359317509,1745917842385,-159.248237,0.00027989,7]
[359317510,1745917842395,-151.0,0.00027989,7]
[359317511,1745917842405,-151.0,0.00027989,7]
[359317512,1745917842414,-151.0,0.00027989,7]
[359317513,1745917842424,-157.626599,0.00027989,7]
[359317514,1745917842434,-151.0,0.00027989,7]
[359317515,1745917842444,-151.0,0.00027989,7]
[359317516,1745917842454,-151.0,0.0002799,7]
[359317517,1745917842464,-151.0,0.0002799,7]
[359317518,1745917842475,-481.308309,0.0002799,7]
[359317519,1745917842484,-481.308309,0.0002799,7]
[359317520,1745917842494,-525.661919,0.0002799,7]
[359317521,1745917842504,-525.661919,0.0002799,7]
[359317522,1745917842513,-651.415344,0.0002799,7]
[359317523,1745917842523,-61378.0716521,0.0002799,2]
[359317524,1745917842532,-25677.53598868,0.0002799,2]
[359317525,1745917842547,-636.0425114,0.0002799,2]
[359317526,1745917842559,-464.03396,0.0002799,2]
[359317527,1745917842571,-788.7241764,0.0002799,2]
[359317528,1745917842591,-1742.42780964,0.0002799,2]
[359317537,1745917843060,-2052.39581711,0.00027865,2]
[359317538,1745917843070,-23632.79975958,0.0002799,2]
[359317539,1745917843079,-151.0,0.0002799,7]
[359317540,1745917843089,-500.0,0.00027998,2]
[359317541,1745917843100,-470.0,0.00027999,2]
[359317542,1745917843110,-470.0,0.00027999,2]
[359317543,1745917843121,-470.0,0.00027999,2]
[359317544,1745917843131,-560.22262948,0.00027999,2]
[359317545,1745917843142,-710.16,0.00027999,2]
[359317546,1745917843151,-470.0,0.00027999,2]
[359317547,1745917843161,-416.88465255,0.00027999,2]
[359317548,1745917843170,-470.0,0.00027999,2]
[359317549,1745917843179,-470.0,0.00027999,2]
[359317550,1745917843189,-470.0,0.00027999,2]
[359317551,1745917843199,-428.28283277,0.00027999,2]
[359317552,1745917843209,-470.0,0.00027999,2]
[359317553,1745917843219,-470.0,0.00027999,2]
[359317554,1745917843231,-916.24,0.00027999,2]
[359317555,1745917843241,-490.0,0.00027999,2]
[359317556,1745917843251,-470.0,0.00027999,2]
[359317557,1745917843261,-170.17736594,0.00027999,2]
[359317558,1745917843271,-470.0,0.00027999,2]
[359317559,1745917843280,-470.0,0.00027999,2]
[359317561,1745917843290,-470.0,0.00027999,2]
[359317563,1745917843300,-601.14,0.00027999,2]
[359317565,1745917843310,-470.0,0.00027999,2]
[359317567,1745917843319,-584.89,0.00027999,2]
[359317569,1745917843329,-470.0,0.00027999,2]
[359317571,1745917843338,-162.80253024,0.00027999,2]
[359317574,1745917843347,-470.0,0.00027999,2]
[359317576,1745917843357,-176.17254964,0.00027999,2]
[359317578,1745917843366,-470.0,0.00027999,2]
[359317580,1745917843376,-470.0,0.00027999,2]
[359317582,1745917843386,-470.0,0.00027999,2]
[359317584,1745917843395,-470.0,0.00027999,2]
[359317586,1745917843404,-470.0,0.00027999,2]
[359317588,1745917843414,-470.0,0.00027999,2]
[359317590,1745917843423,-470.0,0.00027999,2]
[359317592,1745917843432,-392.11828764,0.00027999,2]
[359317593,1745917843441,-470.0,0.00027999,2]
[359317595,1745917843450,-477.32,0.00027999,2]
[359317596,1745917843460,-470.0,0.00027999,2]
[359317598,1745917843470,-470.0,0.00027999,2]
[359317600,1745917843479,-499.07,0.00027999,2]
[359317602,1745917843489,-470.0,0.00027999,2]
[359317604,1745917843498,-470.0,0.00027999,2]
[359317606,1745917843508,-505.48960596,0.00027999,2]
[359317608,1745917843517,-470.0,0.00027999,2]
[359317610,1745917843527,-470.0,0.00027999,2]
[359317612,1745917843536,-314.68905917,0.00027999,2]
[359317614,1745917843546,-250.0,0.00027999,2]
[359317616,1745917843555,-470.0,0.00027999,2]
[359317618,1745917843564,-151.0,0.00027999,7]
[359317620,1745917843573,-470.0,0.00027999,2]
[359317622,1745917843582,-246.88536534,0.00027999,2]
[359317624,1745917843591,-487.44,0.00027999,2]
[359317626,1745917843600,-470.0,0.00027999,2]
[359317627,1745917843609,-470.0,0.00027999,2]
[359317629,1745917843619,-470.0,0.00027999,2]
[359317631,1745917843628,-400.87069824,0.00027999,2]
[359317633,1745917843637,-470.0,0.00027999,2]
[359317635,1745917843647,-538.8,0.00027999,2]
[359317637,1745917843656,-479.85,0.00027999,2]
[359317639,1745917843666,-470.0,0.00027999,2]
[359317641,1745917843676,-470.0,0.00027999,2]
[359317643,1745917843686,-470.0,0.00027999,2]
[359317645,1745917843695,-578.63,0.00027999,2]
[359317647,1745917843704,-470.0,0.00027999,2]
[359317649,1745917843713,-470.0,0.00027999,2]
[359317651,1745917843723,-151.0,0.00027999,7]
[359317653,1745917843732,-470.0,0.00027999,2]
[359317655,1745917843742,-475.38,0.00027999,2]
[359317657,1745917843751,-470.0,0.00027999,2]
[359317659,1745917843760,-525.46,0.00027999,2]
[359317661,1745917843770,-470.0,0.00027999,2]
[359317663,1745917843779,-151.0,0.00027999,7]
[359317665,1745917843788,-470.0,0.00027999,2]
[359317667,1745917843797,-470.0,0.00027999,2]
[359317669,1745917843806,-470.0,0.00027999,2]
[359317671,1745917843816,-470.0,0.00027999,2]
[359317673,1745917843825,-151.0,0.00027999,7]
[359317675,1745917843834,-470.0,0.00027999,2]
[359317677,1745917843843,-470.0,0.00027999,2]
[359317679,1745917843853,-151.0,0.00027999,7]
[359317681,1745917843862,-603.35,0.00027999,2]
[359317682,1745917843871,-470.0,0.00027999,2]
[359317684,1745917843880,-470.0,0.00027999,2]
[359317686,1745917843889,-543.9739278,0.00027999,2]
[359317688,1745917843899,-470.0,0.00027999,2]
[359317690,1745917843907,-151.0,0.00027999,7]
[359317692,1745917843917,-715.27,0.00027999,2]
[359317694,1745917843930,-470.0,0.00027999,2]
[359317696,1745917843940,-470.0,0.00027999,2]
[359317698,1745917843949,-470.0,0.00027999,2]
[359317700,1745917843959,-151.0,0.00027999,7]
[359317702,1745917843969,-470.0,0.00027999,2]
[359317704,1745917843978,-250.98377082,0.00027999,2]
[359317706,1745917843988,-544.94477294,0.00027999,2]
[359317708,1745917843998,-459.82510216,0.00027999,2]
[359317710,1745917844010,-510.47597925,0.00027999,2]
[359317713,1745917844019,-470.0,0.00027999,2]
[359317714,1745917844030,-470.0,0.00027999,2]
[359317716,1745917844041,-470.0,0.00027999,2]
[359317718,1745917844051,-621.68,0.00027999,2]
[359317720,1745917844061,-629.17,0.00027999,2]
[359317722,1745917844070,-470.0,0.00027999,2]
[359317724,1745917844080,-449.34244596,0.00027999,2]
[359317726,1745917844091,-881.1,0.00027999,2]
[359317728,1745917844100,-470.0,0.00027999,2]
[359317730,1745917844109,-470.0,0.00027999,2]
[359317732,1745917844119,-401.91153165,0.00027999,2]
[359317734,1745917844128,-470.0,0.00027999,2]
[359317736,1745917844137,-470.0,0.00027999,2]
[359317738,1745917844146,-470.0,0.00027999,2]
[359317740,1745917844156,-470.0,0.00027999,2]
[359317742,1745917844165,-470.0,0.00027999,2]
[359317744,1745917844175,-470.0,0.00027999,2]
[359317746,1745917844184,-515.75906804,0.00027999,2]
[359317748,1745917844194,-400.0,0.00027999,2]
[359317750,1745917844203,-530.92978694,0.00027999,2]
[359317752,1745917844212,-470.0,0.00027999,2]
[359317754,1745917844226,-185.39998308,0.00027999,2]
[359317756,1745917844235,-718.55,0.00027999,2]
[359317758,1745917844245,-470.0,0.00027999,2]
[359317760,1745917844254,-470.0,0.00027999,2]
[359317762,1745917844265,-349.17821084,0.00027999,2]
[359317764,1745917844274,-581.67,0.00027999,2]
[359317766,1745917844283,-470.0,0.00027999,2]
[359317768,1745917844293,-470.0,0.00027999,2]
[359317770,1745917844303,-422.28792959,0.00027999,2]
[359317772,1745917844312,-470.0,0.00027999,2]
[359317774,1745917844322,-470.0,0.00027999,2]
[359317776,1745917844332,-470.0,0.00027999,2]
[359317778,1745917844343,-470.0,0.00027999,2]
[359317780,1745917844352,-518.04021984,0.00027999,2]
[359317782,1745917844362,-470.0,0.00027999,2]
[359317784,1745917844371,-264.98884095,0.00027999,2]
[359317786,1745917844380,-241.42784223,0.00027999,2]
[359317788,1745917844390,-470.0,0.00027999,2]
[359317790,1745917844405,-422.26119446,0.00027999,2]
[359317792,1745917844415,-503.93505354,0.00027999,2]
[359317794,1745917844424,-428.64450674,0.00027999,2]
[359317796,1745917844435,-470.0,0.00027999,2]
[359317798,1745917844444,-431.851164,0.00027999,7]
[359317800,1745917844454,-470.0,0.00027999,2]
[359317802,1745917844463,-470.0,0.00027999,2]
[359317804,1745917844474,-431.851164,0.00027999,7]
[359317806,1745917844483,-470.0,0.00027999,2]
[359317808,1745917844493,-470.0,0.00027999,2]
[359317810,1745917844502,-627.15,0.00027999,2]
[359317812,1745917844511,-155.555063,0.00027999,7]
[359317814,1745917844520,-157.179759,0.00027999,7]
[359317816,1745917844530,-155.555063,0.00027999,7]
[359317817,1745917844539,-603.06,0.00027999,2]
[359317820,1745917844550,-470.0,0.00027999,2]
[359317821,1745917844559,-52.99331334,0.00027999,2]
[359317862,1745917844979,-417.00668666,0.00027999,2]
[359317864,1745917844989,-470.0,0.00027999,2]
[359317866,1745917844998,-156.898217,0.00027999,7]
[359317868,1745917845008,-650.96,0.00027999,2]
[359317870,1745917845018,-470.0,0.00027999,2]
[359317872,1745917845027,-470.0,0.00027999,2]
[359317874,1745917845036,-476.44418907,0.00027999,2]
[359317876,1745917845045,-401.3866961,0.00027999,2]
[359317944,1745917845899,-1711.58496145,0.00027927,2]
[359317962,1745917846057,-340.81085566,0.00027927,2]
[359317964,1745917846067,-68.6133039,0.00027999,2]
[359317966,1745917846077,-470.0,0.00027999,2]
[359317968,1745917846086,-151.588304,0.00027999,7]
[359317969,1745917846095,-470.0,0.00027999,2]
[359317971,1745917846106,-151.0,0.00027999,7]
[359317974,1745917846116,-470.0,0.00027999,2]
[359317975,1745917846125,-567.4071326,0.00027999,2]
[359317978,1745917846135,-631.48,0.00027999,2]
[359318001,1745917846356,-470.0,0.00027999,2]
[359318003,1745917846367,-1000.13,0.00027999,2]
[359318005,1745917846376,-470.0,0.00027999,2]
[359318007,1745917846386,-470.0,0.00027999,2]
[359318009,1745917846396,-247.099357,0.00027999,7]
[359318011,1745917846406,-470.0,0.00027999,2]
[359318013,1745917846416,-470.0,0.00027999,2]
[359318015,1745917846426,-470.0,0.00027999,2]
[359318017,1745917846436,-470.0,0.00027999,2]
[359318019,1745917846446,-600.09575515,0.00027999,2]
[359318021,1745917846455,-470.0,0.00027999,2]
[359318023,1745917846464,-462.97529169,0.00027999,2]
[359318212,1745917922142,200.0,0.00029612,117]
[359318213,1745917922255,200.0,0.0002709,117]
[359318214,1745917922330,200.0,0.00027405,117]
[359318215,1745918307950,166.587,0.000325,120]
[359318216,1745918307995,166.587,0.000325,120]
[359318217,1745918308056,166.587,0.000325,120]
[359318218,1745918308112,166.587,0.000325,120]
[359318223,1745918769343,987.8951775,0.000199,3]
[359318224,1745918769365,2000.0,0.000199,3]
[359318225,1745918769386,1759.3243719,0.000199,3]
[359318226,1745918895202,240.6756281,0.00017,2]
[359318227,1745918895222,9.3243719,0.00017,2]
[359318243,1745919032160,-541.45,0.00024921,2]
[359318244,1745919032170,-178.59,0.00026626,2]
[359318245,1745919032181,-357.599266,0.00026626,2]
[359318246,1745919032190,-250.0,0.00026761,2]
[359318247,1745919032199,-207.4,0.00026877,2]
[359318248,1745919032209,-2231.93400728,0.000269,7]
[359318249,1745919032218,-752.6022343,0.00026909,4]
[359318250,1745919032227,-1200.0,0.00026918,2]
[359318251,1745919032236,-311.43904906,0.00026919,2]
[359318729,1745919037933,-563.94852852,0.00026919,2]
[359318730,1745919037945,-711.441254,0.00026919,2]
[359318731,1745919037956,-1728.65,0.00026919,2]
[359318732,1745919037967,-761.39912051,0.00026919,2]
[359318813,1745919040073,-914.21204791,0.00026919,2]
[359318814,1745919040083,-300.0,0.00026946,2]
[359318815,1745919040092,-821.72,0.00026947,2]
[359318816,1745919040101,-1000.0,0.00026955,2]
[359318817,1745919040111,-161.91,0.00026965,2]
[359318818,1745919040121,-1794.0,0.00027,2]
[359318819,1745919040130,-541.45,0.00027185,2]
[359318820,1745919040140,-184.54,0.00027397,2]
[359318821,1745919040150,-152.02,0.00027397,2]
[359318822,1745919040159,-403.28,0.00027397,2]
[359318823,1745919040169,-9999.99,0.00027397,2]
[359318824,1745919040178,-890.38,0.00027397,2]
[359318825,1745919040187,-150.99,0.00027397,2]
[359318826,1745919040197,-9999.99,0.00027397,2]
[359318827,1745919040206,-2231.9340072,0.00027555,7]
[359318828,1745919040215,-269.9524,0.00027688,2]
[359318829,1745919040225,-3929.7216,0.00027688,2]
[359318830,1745919040234,-12130.7314,0.00027769,2]
[359318831,1745919040243,-163.71782981,0.00027787,2]
[359318832,1745919040253,-487.9,0.00027788,2]
[359318833,1745919040262,-470.0,0.00027788,2]
[359318834,1745919040272,-470.0,0.00027788,2]
[359318835,1745919040281,-470.0,0.00027788,2]
[359318836,1745919040290,-470.0,0.00027788,2]
[359318837,1745919040301,-470.0,0.00027788,2]
[359318838,1745919040310,-562.82,0.00027788,2]
[359318839,1745919040320,-470.0,0.00027788,2]
[359318840,1745919040329,-470.0,0.00027788,2]
[359318841,1745919040339,-470.0,0.00027788,2]
[359318842,1745919040352,-470.0,0.00027788,2]
[359318843,1745919040362,-470.0,0.00027788,2]
[359318844,1745919040374,-479.12,0.00027788,2]
[359318845,1745919040384,-530.98,0.00027788,2]
[359318846,1745919040395,-470.0,0.00027788,2]
[359318847,1745919040406,-470.0,0.00027788,2]
[359318848,1745919040415,-535.86,0.00027788,2]
[359318849,1745919040426,-470.0,0.00027788,2]
[359318850,1745919040436,-470.0,0.00027788,2]
[359318851,1745919040444,-470.0,0.00027788,2]
[359318852,1745919040454,-470.0,0.00027788,2]
[359318853,1745919040463,-470.0,0.00027788,2]
[359318854,1745919040472,-470.0,0.00027788,2]
[359318855,1745919040481,-805.31,0.00027788,2]
[359318856,1745919040490,-470.0,0.00027788,2]
[359318857,1745919040499,-470.0,0.00027788,2]
[359318858,1745919040508,-523.5,0.00027788,2]
[359318859,1745919040518,-470.0,0.00027788,2]
[359318860,1745919040528,-186.14470499,0.00027788,2]
[359318861,1745919040538,-470.0,0.00027788,2]
[359318862,1745919040549,-470.0,0.00027788,2]
[359318864,1745919040559,-470.0,0.00027788,2]
[359318866,1745919040569,-470.0,0.00027788,2]
[359318868,1745919040578,-470.0,0.00027788,2]
[359318870,1745919040587,-470.0,0.00027788,2]
[359318872,1745919040597,-470.0,0.00027788,2]
[359318874,1745919040606,-470.0,0.00027788,2]
[359318876,1745919040616,-470.0,0.00027788,2]
[359318878,1745919040625,-470.0,0.00027788,2]
[359318880,1745919040635,-470.0,0.00027788,2]
[359318882,1745919040649,-500.0,0.00027788,2]
[359318884,1745919040658,-470.0,0.00027788,2]
[359318886,1745919040668,-470.0,0.00027788,2]
[359318888,1745919040678,-470.0,0.00027788,2]
[359318890,1745919040687,-470.0,0.00027788,2]
[359318892,1745919040697,-470.0,0.00027788,2]
[359318894,1745919040706,-470.0,0.00027788,2]
[359318896,1745919040717,-470.0,0.00027788,2]
[359318898,1745919040727,-810.96,0.00027788,2]
[359318900,1745919040736,-470.0,0.00027788,2]
[359318902,1745919040745,-470.0,0.00027788,2]
[359318904,1745919040755,-470.0,0.00027788,2]
[359318906,1745919040764,-470.0,0.00027788,2]
[359318908,1745919040774,-470.0,0.00027788,2]
[359318910,1745919040783,-470.0,0.00027788,2]
[359318912,1745919040792,-470.0,0.00027788,2]
[359318914,1745919040801,-500.0,0.00027788,2]
[359318916,1745919040813,-477.26267962,0.00027788,2]
[359318918,1745919040822,-470.0,0.00027788,2]
[359318920,1745919040832,-1502.61,0.00027788,2]
[359318922,1745919040841,-470.0,0.00027788,2]
[359318924,1745919040850,-470.0,0.00027788,2]
[359318926,1745919040859,-470.0,0.00027788,2]
[359318928,1745919040869,-470.0,0.00027788,2]
[359318930,1745919040879,-470.0,0.00027788,2]
[359318932,1745919040888,-400.0,0.00027788,2]
[359318934,1745919040897,-470.0,0.00027788,2]
[359318936,1745919040907,-470.0,0.00027788,2]
[359318938,1745919040916,-470.0,0.00027788,2]
[359318940,1745919040926,-470.0,0.00027788,2]
[359318942,1745919040936,-470.0,0.00027788,2]
[359318944,1745919040946,-470.0,0.00027788,2]
[359318946,1745919040955,-470.0,0.00027788,2]
[359318948,1745919040964,-150.0,0.00027788,2]
[359318950,1745919040973,-470.0,0.00027788,2]
[359318952,1745919040983,-470.0,0.00027788,2]
[359318954,1745919040993,-470.0,0.00027788,2]
[359318956,1745919041004,-470.0,0.00027788,2]
[359318958,1745919041013,-470.0,0.00027788,2]
[359318960,1745919041023,-1399.29,0.00027788,2]
[359318962,1745919041033,-470.0,0.00027788,2]
[359318964,1745919041042,-499.75,0.00027788,2]
[359318966,1745919041052,-470.0,0.00027788,2]
[359318968,1745919041061,-580.53,0.00027788,2]
[359318970,1745919041071,-470.0,0.00027788,2]
[359318972,1745919041081,-547.73,0.00027788,2]
[359318974,1745919041090,-479.63,0.00027788,2]
[359318976,1745919041100,-470.0,0.00027788,2]